fUSD/lending_fUSD_20240720
["ID","MTS","AMOUNT","RATE_DAILY","PERIOD"]
[332697458,1721454640046,-1241.32978683,0.00014999,2]
[332697459,1721454640055,-1241.32978683,0.00014999,2]
[332697461,1721454640064,-1241.32978683,0.00014999,2]
[332697463,1721454640074,-1241.32978683,0.00014999,2]
[332697465,1721454640084,-1241.32978683,0.00014999,2]
[332697467,1721454640093,-1241.32978683,0.00014999,2]
[332697469,1721454640103,-1241.32978683,0.00014999,2]
[332697471,1721454640112,-1241.32978683,0.00014999,2]
[332697473,1721454640122,-1241.32978683,0.00014999,2]
[332697475,1721454640131,-1241.32978683,0.00014999,2]
[332697477,1721454640140,-1241.32978683,0.00014999,2]
[332697479,1721454640149,-1241.32978683,0.00014999,2]
[332697481,1721454640159,-1241.32978683,0.00014999,2]
[332697483,1721454640168,-1241.32978683,0.00014999,2]
[332697485,1721454640178,-1241.32978683,0.00014999,2]
[332697487,1721454640187,-1218.76015433,0.00014999,2]
[332697489,1721454640197,-1218.76015433,0.00014999,2]
[332697491,1721454640206,-1218.76015433,0.00014999,2]
[332697493,1721454640216,-1218.76015433,0.00014999,2]
[332697495,1721454640225,-1218.76015433,0.00014999,2]
[332697497,1721454640234,-1218.76015433,0.00014999,2]
[332697498,1721454640243,-1218.76015433,0.00014999,2]
[332697500,1721454640252,-1218.76015433,0.00014999,2]
[332697502,1721454640262,-1218.76015433,0.00014999,2]
[332697504,1721454640271,-1218.76015433,0.00014999,2]
[332697506,1721454640280,-1218.76015433,0.00014999,2]
[332697508,1721454640290,-1218.76015433,0.00014999,2]
[332697510,1721454640304,-1218.76015433,0.00014999,2]
[332697511,1721454640313,-1218.76015433,0.00014999,2]
[332697513,1721454640323,-1218.76015433,0.00014999,2]
[332697515,1721454640333,-1218.76015433,0.00014999,2]
[332697517,1721454640343,-1218.76015433,0.00014999,2]
[332697519,1721454640352,-1218.76015433,0.00014999,2]
[332697521,1721454640361,-1218.76015433,0.00014999,2]
[332697523,1721454640371,-1218.76015433,0.00014999,2]
[332697525,1721454640381,-1218.76015433,0.00014999,2]
[332697527,1721454640392,-1218.76015433,0.00014999,2]
[332697529,1721454640403,-1218.76015433,0.00014999,2]
[332697530,1721454640413,-1218.76015433,0.00014999,2]
[332697532,1721454640423,-1218.76015433,0.00014999,2]
[332697534,1721454640432,-1218.76015433,0.00014999,2]
[332697536,1721454640441,-1218.76015433,0.00014999,2]
[332697538,1721454640451,-1218.76015433,0.00014999,2]
[332697540,1721454640461,-1218.76015433,0.00014999,2]
[332697541,1721454640470,-1218.76015433,0.00014999,2]
[332697543,1721454640479,-1218.76015436,0.00014999,2]
[332697545,1721454640489,-1218.76015436,0.00014999,2]
[332697564,1721454640844,-1218.76015436,0.00014999,2]
[332697565,1721454640855,-2972362.23763228,0.00015,2]
[332697566,1721454640865,-170.08264759,0.00015,2]
[332697567,1721454640875,-150.0,0.00015,2]
[332697568,1721454640884,-285.41,0.00015,2]
[332697569,1721454640894,-2285.31799,0.00015,2]
[332697570,1721454640903,-250.0,0.00015637,2]
[332697571,1721454640912,-326.19,0.00015712,2]
[332697572,1721454640922,-499.99,0.00015809,2]
[332697573,1721454640932,-499.99,0.00015809,2]
[332697574,1721454640941,-299.99,0.00015809,2]
[332697575,1721454640950,-250.0,0.00015843,2]
[332697576,1721454640960,-250.0,0.00015897,2]
[332697577,1721454640969,-23870.0,0.00015951,2]
[332697578,1721454640979,-1000.0,0.00016031,2]
[332697579,1721454640988,-9999.99,0.00016116,2]
[332697580,1721454640997,-884.75,0.00016292,2]
[332697581,1721454641006,-10000.0,0.00016694,2]
[332697582,1721454641015,-195.23,0.00016712,2]
[332697583,1721454641025,-1323.72601942,0.00016799,2]
[332697584,1721454641035,-10379.64446901,0.00016855,2]
[332697585,1721454641045,-200.0,0.00017,2]
[332697586,1721454641054,-7376.97,0.00017194,2]
[332697587,1721454641063,-300.0,0.00017237,2]
[332697588,1721454641073,-179.65590807,0.00017312,2]
[332697589,1721454641085,-450.105,0.00017432,2]
[332697590,1721454641094,-38337.0,0.00017432,2]
[332697591,1721454641105,-616.304,0.00017432,2]
[332697592,1721454641115,-213.34,0.00017511,2]
[332697593,1721454641124,-162.33,0.00017583,2]
[332697594,1721454641133,-234.81,0.00017762,2]
[332697595,1721454641143,-229.113,0.00017768,2]
[332697596,1721454641153,-706.68,0.0001779,2]
[332697597,1721454641164,-326.19,0.00017976,2]
[332697598,1721454641173,-1000.0,0.00018035,2]
[332697599,1721454641182,-884.75,0.00018328,2]
[332697600,1721454641191,-213.34,0.00018386,2]
[332697601,1721454641200,-300.0,0.00018607,2]
[332697602,1721454641211,-229.113,0.00018701,2]
[332697603,1721454641221,-5000.0,0.00018998,2]
[332697604,1721454641231,-250.0,0.00019,2]
[332697605,1721454641242,-613.0,0.000191,2]
[332697606,1721454641253,-213.34,0.00019262,2]
[332697607,1721454641263,-7618.42558345,0.00019307,2]
[332697608,1721454641273,-5000.0,0.00019307,2]
[332697609,1721454641282,-5000.0,0.00019307,2]
[332697610,1721454641292,-5000.0,0.00019307,2]
[332697611,1721454641304,-5000.0,0.00019307,2]
[332697612,1721454641313,-3973.24754201,0.00019451,2]
[332697613,1721454641323,-1417.0,0.000195,2]
[332697614,1721454641333,-1254.63523304,0.00019599,2]
[332697615,1721454641343,-179.65590807,0.00019725,2]
[332697616,1721454641353,-229.113,0.00019732,2]
[332697617,1721454641362,-759.04945973,0.00019899,2]
[332697618,1721454641372,-767.5564006,0.0002,4]
[332697619,1721454641381,-340.33985388,0.0002,7]
[332697620,1721454641391,-2912.365232,0.0002,2]
[332697621,1721454641401,-2285.318,0.0002,2]
[332697622,1721454641412,-1000.0,0.00020039,2]
[332697623,1721454641423,-257.23252039,0.00020109,2]
[332697624,1721454641433,-155.0,0.00020109,2]
[332697625,1721454641443,-213.34,0.00020137,2]
[332697626,1721454641453,-2022.14540046,0.00020222,2]
[332697627,1721454641463,-326.19,0.0002024,2]
[332697628,1721454641473,-884.75,0.00020365,2]
[332697629,1721454641482,-198.4010102,0.0002038,2]
[332697630,1721454641491,-180.49475677,0.0002038,2]
[332697631,1721454641500,-17004.884,0.00020432,2]
[332697632,1721454641509,-327.76679983,0.00020439,2]
[332697633,1721454641518,-209.01836481,0.00020588,2]
[332697634,1721454641528,-188.5113815,0.00020821,2]
[332697635,1721454641537,-413.80836051,0.00020821,2]
[332697636,1721454641546,-531.12735371,0.00020831,2]
[332697637,1721454641555,-946.5561817,0.00020831,2]
[332697638,1721454641564,-599.45308107,0.00020831,2]
[332697639,1721454641574,-155.0,0.00020831,2]
[332697640,1721454641583,-229.113,0.00020874,2]
[332697641,1721454641592,-155.0,0.00020899,2]
[332697642,1721454641602,-20031.74991747,0.00021,4]
[332697643,1721454641611,-20038.067428,0.00021,4]
[332697644,1721454641620,-20038.06394504,0.00021,4]
[332697645,1721454641629,-20038.07287107,0.00021,4]
[332697646,1721454641638,-300.0,0.00021,2]
[332697647,1721454641647,-387.33708167,0.00021,2]
[332697648,1721454641656,-213.34,0.00021013,2]
[332697649,1721454641665,-513.0,0.00021073,2]
[332697650,1721454641675,-180.0,0.00021397,2]
[332697651,1721454641684,-150.28,0.00021644,2]
[332697652,1721454641693,-153.0,0.00021644,2]
[332697653,1721454641703,-182.9,0.00021918,2]
[332697654,1721454641713,-155.6,0.00021918,2]
[332697655,1721454641722,-155.63,0.00021918,2]
[332697656,1721454641731,-164019.94074025,0.00022,4]
[332697657,1721454641741,-1000.0,0.00022043,2]
[332697658,1721454641750,-179.65590807,0.00022137,2]
[332697659,1721454641759,-229.113,0.00022142,2]
[332697660,1721454641769,-884.75,0.00022401,2]
[332697661,1721454641779,-326.19,0.00022504,2]
[332697662,1721454641789,-717.81275727,0.00022995,2]
[332697663,1721454641798,-350.0,0.00023,2]
[332697664,1721454641808,-1693.76498594,0.000232,2]
[332697665,1721454641818,-229.113,0.00023555,2]
[332697666,1721454641827,-1000.0,0.00024047,2]
[332697667,1721454641837,-1267.51325796,0.00024124,2]
[332697668,1721454641847,-261.15471094,0.00024124,2]
[332697669,1721454641856,-252.4168305,0.00024242,2]
[332697670,1721454641866,-884.75,0.00024438,2]
[332697671,1721454641875,-179.65590807,0.0002455,2]
[332697672,1721454641885,-173.76,0.000247,2]
[332697673,1721454641895,-169.31,0.000247,2]
[332697674,1721454641905,-326.19,0.00024768,2]
[332697675,1721454641914,-234.81,0.00024867,2]
[332697676,1721454641924,-400.0,0.00025,2]
[332697677,1721454641933,-2285.318,0.00025,2]
[332697678,1721454641943,-229.113,0.00025134,2]
[332697679,1721454641953,-347.00704064,0.00026686,2]
[332697680,1721454641963,-804.51,0.000267,7]
[332697681,1721454641972,-227.4651143,0.00026779,5]
[332697682,1721454641983,-155.0,0.0002679,2]
[332697683,1721454641993,-229.113,0.00026902,2]
[332697684,1721454642002,-179.65590807,0.00026962,2]
[332697685,1721454642011,-306.12153882,0.00026967,2]
[332697686,1721454642021,-306.12153882,0.00026967,2]
[332697687,1721454642032,-450.0,0.00027,2]
[332697688,1721454642044,-2000.0,0.00027,2]
[332697689,1721454642054,-3102.812548,0.0002701,2]
[332697690,1721454642064,-326.19,0.00027032,2]
[332697691,1721454642074,-167.74,0.00027096,2]
[332697692,1721454642084,-776.94,0.00027397,10]
[332697693,1721454642094,-153.0,0.00027568,2]
[332697694,1721454642103,-153.0,0.00027568,2]
[332697695,1721454642113,-153.0,0.00027575,2]
[332697696,1721454642123,-153.0,0.00027575,2]
[332697697,1721454642132,-153.0,0.00027582,2]
[332697698,1721454642141,-153.0,0.00027582,2]
[332697699,1721454642151,-153.0,0.0002759,2]
[332697700,1721454642161,-153.0,0.0002759,2]
[332697701,1721454642174,-209.0,0.000276,30]
[332697702,1721454642184,-182.08,0.00027818,120]
[332697703,1721454642194,-150.0,0.00027912,2]
[332697704,1721454642206,-305.01515068,0.00027989,2]
[332697705,1721454642216,-155.0,0.00027989,2]
[332697706,1721454642226,-155.0,0.00027989,2]
[332697707,1721454642237,-366.95941435,0.00027989,2]
[332697708,1721454642248,-371.40691921,0.00028,2]
[332697709,1721454642259,-804.51,0.00028,14]
[332697710,1721454642270,-155.26980655,0.00028399,2]
[332697711,1721454642279,-209.0,0.0002847,30]
[332697712,1721454642289,-152.38095237,0.00028564,2]
[332697714,1721454642304,-167.74,0.00028587,2]
[332697715,1721454642315,-152.38095237,0.0002885,2]
[332697716,1721454642325,-150.28,0.00028853,2]
[332697717,1721454642335,-229.113,0.00028889,2]
[332697718,1721454642346,-4176.14045734,0.00029,2]
[332697719,1721454642357,-500.0,0.00029,2]
[332697720,1721454642367,-160.04773201,0.0002908,2]
[332697721,1721454642379,-152.38095237,0.00029215,2]
[332697722,1721454642389,-182.09629712,0.0002927,2]
[332697723,1721454642399,-326.19,0.00029295,2]
[332697724,1721454642408,-209.0,0.0002934,30]
[332697725,1721454642418,-179.65590807,0.00029375,15]
[332697726,1721454642427,-152.6710922,0.0002956,2]
[332697727,1721454642436,-804.51,0.000299,14]
[332697728,1721454642446,-7955.28155254,0.0002999,30]
[332697729,1721454642456,-1678.03821714,0.0003,4]
[332697730,1721454642466,-8510.69186124,0.0003,4]
[332697731,1721454642476,-234.05850084,0.0003,2]
[332697733,1721454642485,-2285.318,0.0003,2]
[332697735,1721454642495,-167.74,0.00030077,2]
[332697736,1721454642504,-1894.0,0.000301,2]
[332697737,1721454642514,-209.0,0.0003021,30]
[332697738,1721454642524,-222.0,0.0003021,2]
[332697739,1721454642535,-162.0,0.00030211,7]
[332697740,1721454642545,-389.34,0.0003063,120]
[332697741,1721454642555,-1179.16474873,0.00030638,4]
[332697742,1721454642565,-550.0,0.00031,2]
[332697743,1721454642574,-153.13738165,0.00031006,7]
[332697744,1721454642584,-209.0,0.0003108,30]
[332697745,1721454642594,-222.0,0.0003108,2]
[332697746,1721454642604,-229.113,0.0003113,2]
[332697747,1721454642614,-151.64406545,0.00031366,7]
[332697748,1721454642623,-162.0,0.00031422,7]
[332697749,1721454642633,-804.51,0.000315,14]
[332697750,1721454642643,-1500.0,0.000315,2]
[332697751,1721454642652,-326.19,0.00031559,2]
[332697752,1721454642662,-167.74,0.00031568,2]
[332697753,1721454642672,-179.65590807,0.00031787,15]
[332697754,1721454642682,-209.0,0.0003195,30]
[332697755,1721454642692,-222.0,0.0003195,2]
[332697756,1721454642702,-161.75196156,0.00032,10]
[332697757,1721454642712,-5000.0,0.00032776,2]
[332697758,1721454642722,-1000.0,0.00032776,2]
[332697759,1721454642731,-209.0,0.0003282,30]
[332697760,1721454642741,-222.0,0.0003282,2]
[332697761,1721454642751,-348.12979432,0.00032849,4]
[332697762,1721454642760,-1064.03,0.00032876,30]
[332697763,1721454642770,-500.0,0.00032876,30]
[332697764,1721454642781,-500.42974122,0.00032876,14]
[332697765,1721454642790,-500.77582015,0.00032876,14]
[332697766,1721454642800,-501.1450779,0.00032876,14]
[332697767,1721454642810,-500.0,0.00032876,14]
[332697768,1721454642820,-500.0,0.00032876,14]
[332697769,1721454642830,-500.0,0.00032876,14]
[332697770,1721454642840,-397.26637505,0.00032876,14]
[332697771,1721454642850,-501.26061679,0.00032876,14]
[332697772,1721454642860,-501.00777491,0.00032876,14]
[332697773,1721454642870,-500.0,0.00032876,14]
[332697774,1721454642880,-500.0,0.00032876,14]
[332697775,1721454642889,-500.49336903,0.00032876,14]
[332697776,1721454642899,-500.0,0.00032876,14]
[332697777,1721454642908,-500.0,0.00032876,14]
[332697778,1721454642919,-500.0,0.00032876,14]
[332697779,1721454642928,-500.0,0.00032876,14]
[332697780,1721454642938,-500.0,0.00032876,14]
[332697781,1721454642947,-500.0,0.00032876,14]
[332697782,1721454642957,-500.0,0.00032876,14]
[332697783,1721454642967,-500.0,0.00032876,14]
[332697784,1721454642977,-501.31746436,0.00032876,14]
[332697785,1721454642986,-500.72723239,0.00032876,14]
[332697786,1721454642996,-500.0,0.00032876,14]
[332697787,1721454643005,-501.37689957,0.00032876,14]
[332697789,1721454643014,-500.90563078,0.00032876,14]
[332697791,1721454643024,-500.0,0.00032876,14]
[332697793,1721454643034,-500.0,0.00032876,14]
[332697794,1721454643043,-500.0,0.00032876,14]
[332697797,1721454643053,-500.0,0.00032876,14]
[332697798,1721454643062,-535.29530272,0.00032876,14]
[332697799,1721454643072,-500.0,0.00032876,14]
[332697800,1721454643082,-500.0,0.00032876,14]
[332697801,1721454643092,-500.0,0.00032876,14]
[332697802,1721454643102,-500.0,0.00032876,14]
[332697803,1721454643112,-500.65031019,0.00032876,14]
[332697804,1721454643122,-500.0,0.00032876,14]
[332697805,1721454643131,-500.0,0.00032876,14]
[332697806,1721454643141,-501.37411738,0.00032876,14]
[332697807,1721454643151,-500.27590235,0.00032876,14]
[332697808,1721454643161,-503.87906451,0.00032876,14]
[332697809,1721454643170,-398.23190813,0.00032876,14]
[332697810,1721454643180,-500.0,0.00032876,14]
[332697811,1721454643190,-500.0,0.00032876,14]
[332697812,1721454643265,-586.45337815,0.00032876,14]
[332697813,1721454643276,-498.48359008,0.00032876,14]
[332697814,1721454643286,-200.0,0.00032876,14]
[332697815,1721454643298,-500.0,0.00032876,14]
[332697816,1721454643310,-501.44977035,0.00032876,14]
[332697817,1721454643320,-500.44232252,0.00032876,14]
[332697818,1721454643330,-500.71260989,0.00032876,14]
[332697819,1721454643340,-500.71040418,0.00032876,14]
[332697820,1721454643350,-500.0,0.00032876,14]
[332697821,1721454643360,-500.0,0.00032876,14]
[332697822,1721454643369,-503.54405091,0.00032876,14]
[332697823,1721454643379,-501.38576386,0.00032876,14]
[332697824,1721454643389,-459.33220265,0.00032876,2]
[332697825,1721454643398,-500.50858224,0.00032876,14]
[332697826,1721454643408,-500.84310959,0.00032876,14]
[332697827,1721454643417,-501.12172018,0.00032876,14]
[332697828,1721454643426,-500.40787211,0.00032876,14]
[332697829,1721454643435,-500.0,0.00032876,14]
[332697830,1721454643445,-501.1248895,0.00032876,14]
[332697831,1721454643454,-503.21560026,0.00032876,14]
[332697832,1721454643464,-542.00027014,0.00032876,14]
[332697833,1721454643473,-500.64217748,0.00032876,14]
[332697834,1721454643483,-395.57217966,0.00032876,14]
[332697835,1721454643492,-500.75265537,0.00032876,14]
[332697836,1721454643502,-501.8593647,0.00032876,14]
[332697837,1721454643511,-502.35205204,0.00032876,14]
[332697838,1721454643520,-538.98645909,0.00032876,14]
[332697839,1721454643530,-519.28485412,0.00032876,14]
[332697840,1721454643539,-500.0,0.00032876,14]
[332697841,1721454643549,-501.3963122,0.00032876,14]
[332697842,1721454643559,-501.56042093,0.00032876,14]
[332697843,1721454643568,-500.0,0.00032876,14]
[332697844,1721454643578,-501.41873084,0.00032876,14]
[332697845,1721454643587,-501.02018338,0.00032876,14]
[332697846,1721454643596,-501.46949429,0.00032876,14]
[332697847,1721454643607,-500.0,0.00032876,14]
[332697848,1721454643617,-500.89804101,0.00032876,14]
[332697849,1721454643626,-500.0,0.00032876,14]
[332697850,1721454643637,-500.0,0.00032876,14]
[332697851,1721454643647,-500.0,0.00032876,14]
[332697852,1721454643656,-496.71668956,0.00032876,14]
[332697853,1721454643665,-500.0,0.00032876,14]
[332697854,1721454643674,-500.0,0.00032876,14]
[332697855,1721454643684,-500.0,0.00032876,14]
[332697856,1721454643695,-500.0,0.00032876,14]
[332697857,1721454643706,-501.94568774,0.00032876,14]
[332697858,1721454643716,-500.0,0.00032876,14]
[332697859,1721454643726,-501.38782042,0.00032876,14]
[332697860,1721454643735,-500.0,0.00032876,14]
[332697861,1721454643746,-503.3008274,0.00032876,14]
[332697862,1721454643756,-501.81246434,0.00032876,14]
[332697863,1721454643766,-501.59927429,0.00032876,14]
[332697864,1721454643775,-500.77397615,0.00032876,14]
[332697865,1721454643785,-500.0,0.00032876,14]
[332697866,1721454643796,-501.0849965,0.00032876,14]
[332697867,1721454643806,-500.67159936,0.00032876,14]
[332697868,1721454643815,-627.9143822,0.00032876,14]
[332697869,1721454643824,-500.0,0.00032876,14]
[332697870,1721454643833,-502.80940734,0.00032876,14]
[332697871,1721454643843,-500.73780823,0.00032876,14]
[332697872,1721454643853,-500.0,0.00032876,14]
[332697873,1721454643862,-311.17680378,0.00032876,14]
[332697874,1721454643872,-501.00041711,0.00032876,14]
[332697875,1721454643881,-502.21759261,0.00032876,14]
[332697876,1721454643891,-500.0,0.00032876,14]
[332697877,1721454643900,-500.0,0.00032876,14]
[332697878,1721454643911,-510.51353458,0.00032876,14]
[332697879,1721454643921,-500.0,0.00032876,14]
[332697880,1721454643931,-501.67006972,0.00032876,14]
[332697881,1721454643941,-500.0,0.00032876,14]
[332697882,1721454643951,-500.0,0.00032876,14]
[332697883,1721454643960,-500.0,0.00032876,14]
[332697884,1721454643969,-500.0,0.00032876,14]
[332697885,1721454643978,-500.88654348,0.00032876,14]
[332697886,1721454643987,-501.32554357,0.00032876,14]
[332697887,1721454643997,-500.0,0.00032876,14]
[332697888,1721454644007,-500.54888499,0.00032876,14]
[332697889,1721454644016,-500.0,0.00032876,14]
[332697890,1721454644026,-500.0,0.00032876,14]
[332697891,1721454644035,-278.15166923,0.00032876,14]
[332697892,1721454644045,-500.0,0.00032876,14]
[332697893,1721454644054,-500.0,0.00032876,14]
[332697894,1721454644065,-500.0,0.00032876,14]
[332697895,1721454644075,-500.0,0.00032876,14]
[332697896,1721454644084,-500.0,0.00032876,14]
[332697897,1721454644093,-500.0,0.00032876,14]
[332697898,1721454644103,-500.0,0.00032876,14]
[332697899,1721454644112,-500.0,0.00032876,14]
[332697900,1721454644122,-500.0,0.00032876,14]
[332697901,1721454644131,-500.0,0.00032876,14]
[332697902,1721454644142,-500.0,0.00032876,14]
[332697903,1721454644151,-500.0,0.00032876,14]
[332697904,1721454644161,-500.0,0.00032876,14]
[332697905,1721454644171,-500.0,0.00032876,14]
[332697906,1721454644181,-500.0,0.00032876,14]
[332697907,1721454644191,-500.0,0.00032876,14]
[332697908,1721454644200,-500.0,0.00032876,14]
[332697909,1721454644209,-500.0,0.00032876,14]
[332697910,1721454644218,-500.0,0.00032876,14]
[332697911,1721454644228,-500.0,0.00032876,14]
[332697912,1721454644237,-500.0,0.00032876,14]
[332697913,1721454644246,-500.0,0.00032876,14]
[332697914,1721454644256,-483.75109853,0.00032876,14]
[332697915,1721454644265,-500.0,0.00032876,14]
[332697916,1721454644275,-500.0,0.00032876,14]
[332697917,1721454644284,-678.4,0.00032876,14]
[332697918,1721454644294,-500.0,0.00032876,14]
[332697919,1721454644307,-500.0,0.00032876,14]
[332697920,1721454644316,-500.0,0.00032876,14]
[332697921,1721454644326,-500.0,0.00032876,14]
[332697922,1721454644335,-500.0,0.00032876,14]
[332697923,1721454644346,-500.46133147,0.00032876,14]
[332697924,1721454644355,-368.02912179,0.00032876,14]
[332697925,1721454644364,-500.0,0.00032876,14]
[332697926,1721454644373,-500.93743968,0.00032876,14]
[332697927,1721454644384,-500.0,0.00032876,14]
[332697928,1721454644394,-540.72,0.00032876,14]
[332697929,1721454644403,-500.0,0.00032876,14]
[332697930,1721454644412,-500.0,0.00032876,14]
[332697931,1721454644421,-500.0,0.00032876,14]
[332697932,1721454644431,-500.0,0.00032876,14]
[332697933,1721454644440,-500.0,0.00032876,14]
[332697934,1721454644449,-500.0,0.00032876,14]
[332697935,1721454644458,-500.0,0.00032876,14]
[332697936,1721454644467,-500.0,0.00032876,14]
[332697937,1721454644476,-626.62,0.00032876,14]
[332697938,1721454644486,-843.22,0.00032876,14]
[332697939,1721454644495,-500.0,0.00032876,14]
[332697940,1721454644504,-500.0,0.00032876,14]
[332697941,1721454644513,-500.0,0.00032876,14]
[332697942,1721454644522,-500.0,0.00032876,14]
[332697943,1721454644532,-509.24525564,0.00032876,14]
[332697944,1721454644542,-414.50666144,0.00032876,14]
[332697945,1721454644551,-536.59621082,0.00032876,14]
[332697946,1721454644560,-500.0,0.00032876,14]
[332697947,1721454644569,-500.0,0.00032876,14]
[332697948,1721454644581,-500.0,0.00032876,14]
[332697949,1721454644591,-500.0,0.00032876,14]
[332697950,1721454644601,-500.0,0.00032876,14]
[332697951,1721454644611,-500.0,0.00032876,14]
[332697952,1721454644621,-500.0,0.00032876,14]
[332697953,1721454644631,-500.0,0.00032876,14]
[332697954,1721454644640,-500.0,0.00032876,14]
[332697955,1721454644650,-590.67,0.00032876,14]
[332697956,1721454644661,-581.23,0.00032876,14]
[332697957,1721454644670,-500.0,0.00032876,14]
[332697958,1721454644679,-514.12,0.00032876,14]
[332697959,1721454644689,-500.0,0.00032876,14]
[332697960,1721454644698,-500.0,0.00032876,14]
[332697961,1721454644708,-175.04309663,0.00032876,14]
[332697962,1721454644717,-500.0,0.00032876,14]
[332697963,1721454644726,-500.0,0.00032876,14]
[332697964,1721454644736,-500.59623306,0.00032876,14]
[332697965,1721454644746,-500.0,0.00032876,14]
[332697966,1721454644756,-500.50336955,0.00032876,14]
[332697967,1721454644765,-637.85,0.00032876,14]
[332697968,1721454644774,-355.83351209,0.00032876,14]
[332697969,1721454644782,-500.0,0.00032876,14]
[332697970,1721454644792,-500.0,0.00032876,14]
[332697971,1721454644801,-767.04,0.00032876,14]
[332697972,1721454644810,-500.0,0.00032876,2]
[332697973,1721454644820,-307.52784656,0.00032876,14]
[332697974,1721454644829,-500.0,0.00032876,14]
[332697975,1721454644838,-500.0,0.00032876,14]
[332697976,1721454644847,-500.0,0.00032876,14]
[332697977,1721454644857,-500.0,0.00032876,14]
[332697978,1721454644867,-500.0,0.00032876,14]
[332697979,1721454644876,-500.0,0.00032876,14]
[332697980,1721454644886,-500.0,0.00032876,14]
[332697981,1721454644895,-156.09496582,0.00032876,14]
[332697982,1721454644905,-377.39777113,0.00032876,14]
[332697983,1721454644914,-500.0,0.00032876,14]
[332697984,1721454644924,-500.0,0.00032876,14]
[332697985,1721454644934,-500.0,0.00032876,14]
[332697986,1721454644944,-500.0,0.00032876,14]
[332697987,1721454644954,-502.02476969,0.00032876,14]
[332697988,1721454644965,-500.0,0.00032876,14]
[332697989,1721454644974,-500.0,0.00032876,14]
[332697990,1721454644983,-500.0,0.00032876,14]
[332697991,1721454644993,-500.45000791,0.00032876,14]
[332697992,1721454645003,-500.0,0.00032876,14]
[332697993,1721454645013,-304.81022508,0.00032876,14]
[332697994,1721454645023,-500.0,0.00032876,14]
[332697995,1721454645033,-500.0,0.00032876,14]
[332697996,1721454645042,-501.83343166,0.00032876,14]
[332697997,1721454645051,-607.5,0.00032876,14]
[332697998,1721454645061,-504.01814389,0.00032876,14]
[332697999,1721454645070,-694.38,0.00032876,14]
[332698000,1721454645080,-500.0,0.00032876,14]
[332698001,1721454645089,-500.0,0.00032876,14]
[332698002,1721454645098,-500.93155535,0.00032876,14]
[332698003,1721454645108,-501.19075396,0.00032876,14]
[332698004,1721454645117,-500.0,0.00032876,14]
[332698005,1721454645126,-500.0,0.00032876,14]
[332698006,1721454645136,-500.0,0.00032876,14]
[332698007,1721454645146,-500.41046922,0.00032876,14]
[332698008,1721454645155,-500.0,0.00032876,14]
[332698009,1721454645164,-500.0,0.00032876,14]
[332698010,1721454645174,-500.0,0.00032876,14]
[332698011,1721454645184,-500.0,0.00032876,14]
[332698012,1721454645193,-500.0,0.00032876,14]
[332698013,1721454645203,-500.0,0.00032876,14]
[332698014,1721454645212,-500.0,0.00032876,14]
[332698015,1721454645221,-340.4291354,0.00032876,14]
[332698016,1721454645231,-500.0,0.00032876,14]
[332698017,1721454645240,-500.0,0.00032876,14]
[332698018,1721454645250,-500.71140387,0.00032876,14]
[332698019,1721454645259,-1000.0,0.00032876,2]
[332698020,1721454645269,-500.0,0.00032876,14]
[332698021,1721454645278,-500.0,0.00032876,14]
[332698022,1721454645288,-500.72204949,0.00032876,14]
[332698023,1721454645297,-500.0,0.00032876,14]
[332698024,1721454645311,-500.0,0.00032876,14]